Cogmind - Beta 14 @@@ ROGUE MODE // 2024.08.07 @ 20:05:01 Player: Dadrick Result: Destroyed by G-47 Trooper with Particle Gun Performance ------------- Evolutions (0) 0 Regions Visited (1) 200 Robots Destroyed (20) 100 Value Destroyed (381) 381 Prototype IDs (0) 0 Alien Tech Used (0) 0 Bonus (0) 0 TOTAL SCORE: 681 Bonus ------- None Cogmind --------- Core Integrity 0/250 Matter 252/300 Energy 99/100 System Corruption 0% Temperature Warm (131) Movement Rolling (90) Location -10/Materials Parts ------- > --- POWER (1) -------- (None) > --- PROPULSION (2) --- Wheel Compact Wheel > --- UTILITY (2) ------ Large Storage Unit > --- WEAPON (2) ------- Light Assault Rifle Light Cannon > --- INVENTORY (15) --- Light Treads Light Treads Medium Matter Pod (100) Sensor Array Signal Interpreter Improved Terrain Scanner Light Armor Plating Peak State ------------ > --- POWER ------------ Ion Engine > --- PROPULSION ------- Wheel Compact Wheel > --- UTILITY ---------- Small Storage Unit Improved Terrain Scanner > --- WEAPON ----------- Medium Laser Light Assault Rifle > --- INVENTORY -------- Light Ion Engine Light Treads [Rating: 9] Favorites ----------- Power Light Ion Engine Engine Light Ion Engine Propulsion Light Treads Treads Light Treads Wheel Compact Wheel Utility Small Storage Unit Device Improved Terrain Scanner Storage Small Storage Unit Processor Signal Interpreter Weapon Medium Laser Energy Gun Medium Laser Ballistic Gun Light Assault Rifle Ballistic Cannon Light Cannon Build | -11 -10 ------- Run | Yrd Mat Slots Evolved . | . . Power . | . . Propulsion . | . . Utility . | . . Weapon . | . . Parts Attached 17 | 7 10 Power 3 | 1 2 Engine 3 | 1 2 Core . | . . Reactor . | . . Propulsion 6 | 2 4 Treads 2 | . 2 Leg . | . . Wheel 4 | 2 2 Hover . | . . Flight . | . . Utility 5 | 2 3 Device 2 | 1 1 Storage 2 | 1 1 Processor 1 | . 1 Hackware . | . . Protection . | . . Artifact . | . . Weapon 3 | 2 1 Energy Gun 1 | 1 . Energy Cannon . | . . Ballistic Gun 1 | 1 . Ballistic Cannon 1 | . 1 Launcher . | . . Special Weapon . | . . Impact Weapon . | . . Slashing Weapon . | . . Piercing Weapon . | . . Special Melee Weapon . | . . Unidentified Prototypes . | . . Parts Lost 4 | . 4 Power 2 | . 2 Propulsion . | . . Utility 1 | . 1 Weapon 1 | . 1 Highest Loss Streak 3 | . 3 To Critical Strikes . | . . Average Slot Usage (%) 99 | . 99 Engine 13 | . 13 Treads 15 | . 15 Wheel 12 | . 12 Device 11 | . 11 Storage 14 | . 14 Processor 2 | . 2 Energy Gun 13 | . 13 Ballistic Gun 14 | . 14 Peak Build Rating 9 | 9 9 Average Rating 8 | 8 8 On Entrance 4 | . 9 Naked Turns . | . . Heaviest Build 27 | 14 27 Greatest Support 40 | 26 40 Greatest Overweight (x) 1 | . 1 Average Overweight (x) . | . . Largest Inventory Capacity 15 | 8 15 Average Capacity 9 | 7 9 Most Carried 8 | 4 8 Average Carried 6 | 3 7 Final Capacity 15 | 8 15 Final Carried 7 | 4 7 Class Distribution -------------------- 100% | Mutant Dominant Class ---------------- Mutant | -10/Materials Resources | -11 -10 ----------- Run | Yrd Mat Matter Collected 469 | 235 234 Remotely . | . . Salvage Created 647 | 23 624 Parts 49 | 4 45 Haulers Intercepted 2 | . 2 Recyclers Shooed . | . . Parts Field Recycled . | . . Retrieved Matter . | . . Parts Self-Destructed . | . . Prevented . | . . Kills | -11 -10 ------- Run | Yrd Mat Combat Hostiles Destroyed 14 | . 14 Guns 13 | . 13 Cannons 1 | . 1 Classes Destroyed 6 | 1 5 Tunneler 1 | 1 . Hauler 2 | . 2 Recycler 1 | . 1 Watcher 2 | . 2 Swarmer 6 | . 6 Grunt 8 | . 8 Best Kill Streak 4 | 1 4 Combat Bots Only 4 | . 4 Max Kills in Single Turn 1 | 1 1 Gunslinging . | . . Exploded . | . . Melee . | . . Uniques/NPCs Destroyed . | . . Combat | -11 -10 -------- Run | Yrd Mat Hostile Shots Fired 106 | . 106 Missed 27 | . 27 Damage Taken 794 | . 794 Core 264 | . 264 Absorbed by Shields . | . . Core Remaining (%) 100 | 100 . Volleys Fired 59 | 1 58 Largest 2 | 2 2 Hottest 70 | 70 70 Shots Fired 116 | 2 114 Gun 114 | 2 112 Cannon 2 | . 2 Launcher . | . . Special . | . . Kinetic 61 | 1 60 Thermal 55 | 1 54 Explosive . | . . Electromagnetic . | . . Robot Hit Streak 22 | 1 22 Robot Miss Streak 4 | . 4 Penetration Max . | . . Secondary Targets 4 | . 4 Max Gunslinging Chain 1 | . 1 Shots Hit Robots 74 | 1 73 Core Hits 38 | 1 37 Critical Kills . | . . Critical Parts Destroyed . | . . Critical Strikes 5 | . 5 Burn 5 | . 5 Melee Attacks . | . . Impact . | . . Slashing . | . . Piercing . | . . Sneak Attacks . | . . Combat Hostiles . | . . Follow-up Attacks . | . . Damage Inflicted 845 | 13 832 Guns 811 | 13 798 Cannons 34 | . 34 Explosions . | . . Melee . | . . Ramming . | . . Kinetic 344 | . 344 Thermal 501 | 13 488 Explosive . | . . Electromagnetic . | . . Impact . | . . Slashing . | . . Piercing . | . . Highest Corruption . | . . Average Corruption . | . . Corruption Purged . | . . Corruption Blocked . | . . Overload Shots . | . . Overflow Damage . | . . Projectiles . | . . Explosions . | . . Melee . | . . Knockbacks 1 | . 1 Impact . | . . Kinetic 1 | . 1 Secondary . | . . Self-Inflicted Damage . | . . Shots . | . . Rammed . | . . Targets Rammed . | . . Kicked . | . . Crushed . | . . Highest Temperature 272 | 30 272 Average Temperature 82 | 18 83 Received Heat Transfer 282 | . 282 Siege Activations . | . . Robots Corrupted . | . . Combat Hostiles . | . . Parts Fried . | . . Impact Corruptions . | . . Robots Melted . | . . Combat Hostiles . | . . Parts Melted 4 | . 4 Heat Transferred 1850 | 37 1813 Parts Sabotaged . | . . Parts Stolen . | . . Parts Stripped . | . . Power Chain Reactions . | . . Alert | -11 -10 ------- Run | Yrd Mat Peak Influence 297 | 5 297 Initial 3 | . 3 Average 127 | 4 160 Maximum Alert Level 1 | . 1 Low Security (%) 75 | 100 69 Level 1 24 | . 30 Level 2 . | . . Level 3 . | . . Level 4 . | . . Level 5 . | . . High Security . | . . Max Security . | . . Squads Dispatched 3 | . 3 Investigation 2 | . 2 Extermination . | . . Reinforcement 1 | . 1 Assault . | . . Garrison . | . . Intercept . | . . Searches Triggered . | . . Construction Impeded . | . . Haulers Reinforced . | . . Active Scanning Responses . | . . Cargo Convoy Interrupts . | . . Stealth | -11 -10 --------- Run | Yrd Mat Distress Signals . | . . Communications Jammed . | . . Distress Signals . | . . Times Spotted 24 | . 24 Peak Tracking Total 6 | . 6 Tactical Retreats 2 | . 2 Traps | -11 -10 ------- Run | Yrd Mat Traps Triggered 1 | . 1 Indirectly . | . . Trap Hack Attempts . | . . Triggered . | . . Disarmed . | . . Reprogrammed . | . . Reused . | . . Traps Extracted . | . . Installed . | . . Triggered . | . . Machines | -11 -10 ---------- Run | Yrd Mat Machines Disabled . | . . Max in Single Turn . | . . Machines Repaired . | . . Machines Dismantled . | . . Machines Sabotaged . | . . Overloaded Fab Kills . | . . Hacking | -11 -10 --------- Run | Yrd Mat Machines Accessed 2 | . 2 Terminals 2 | . 2 Fabricators . | . . Repair Stations . | . . Recycling Units . | . . Scanalyzers . | . . Garrison Access . | . . Total Hacks 7 | . 7 Successful 2 | . 2 Failed 5 | . 5 Catastrophic 1 | . 1 Database Lockouts . | . . Manual 5 | . 5 Terminals 7 | . 7 Fabricators . | . . Repair Stations . | . . Recycling Units . | . . Scanalyzers . | . . Garrison Access . | . . Terminal Hacks . | . . Fabricator Hacks . | . . Repair Station Hacks . | . . Recycling Unit Hacks . | . . Scanalyzer . | . . Garrison Access Hacks . | . . Unauthorized Hacks 2 | . 2 Terminals 2 | . 2 Botnet 2 | . 2 Fabricators . | . . Repair Stations . | . . Recycling Units . | . . Scanalyzers . | . . Garrison Access . | . . Data Cores Recovered . | . . Used . | . . Hacking Detections 2 | . 2 Full Trace Events 1 | . 1 Feedback Events . | . . Feedback Blocked . | . . Robot Schematics Acquired . | . . Robots Built . | . . Authchips . | . . Time . | . . Total Robot Build Rating . | . . Part Schematics Acquired . | . . Parts Built . | . . Authchips . | . . Time . | . . Total Part Build Rating . | . . Parts Repaired . | . . Time . | . . Parts Recycled . | . . Recycled Matter . | . . Retrieved Matter . | . . Retrieved Components . | . . Parts Scanalyzed . | . . Part Schematics Acquired . | . . Parts Damaged . | . . Bothacking | -11 -10 ------------ Run | Yrd Mat Used RIF Installer . | . . Robots Hacked . | . . Non-combat . | . . Combat . | . . Robot Hacks Applied . | . . Relay Couplers Released . | . . Fabnet Peak Effective % . | . . Robots Rewired . | . . Allies Hacked . | . . Hacks Repelled . | . . Allies | -11 -10 -------- Run | Yrd Mat Total Allies . | . . Largest Group . | . . Highest-Rated Group . | . . Highest-Rated Ally . | . . Total Orders . | . . Ally Attacks . | . . Total Damage . | . . Kills . | . . Allies Corrupted . | . . Allies Melted . | . . Intel | -11 -10 ------- Run | Yrd Mat Robot Analysis Total . | . . Derelict Logs Recovered . | . . Drone Launches . | . . Drone Recoveries . | . . Exploration | -11 -10 ------------- Run | Yrd Mat Turns Passed 1042 | 217 825 Spaces Moved 519 | 53 466 Core 5 | 5 . Treads 187 | . 187 Legs . | . . Wheels 327 | 48 279 Hover . | . . Flight . | . . Fastest Speed 50 | 50 90 Average Speed 119 | 86 123 Slowest Speed 160 | 100 160 Overloaded Moves . | . . Propulsion Burnouts . | . . Robots Hopped . | . . Cave-ins Triggered . | . . Exploration Rate (%) 34 | 7 62 Regions Visited 1 Branch Regions . Pre-discovered Areas . | . . Known Exits Taken . | . . Unknown Exits Taken 1 | 1 . Scrap Searched . | . . Spaces Dug . | . . Terrain Destroyed . | . . Melee . | . . Projectile . | . . AOE . | . . Terrain Rammed . | . . Walls Destroyed . | . . Machines Disabled . | . . Actions | -11 -10 --------- Run | Yrd Mat Total 831 | 218 613 Wait 222 | 154 68 Move 518 | 52 466 Hop . | . . Pick Up 11 | 4 7 Fast Attach 7 | 7 . Attach 3 | . 3 Detach . | . . Swap 7 | . 7 Drop 4 | . 4 Fire 59 | 1 58 Melee . | . . Ram . | . . Kick . | . . Crush . | . . Escape Stasis . | . . Rewire . | . . Trap . | . . Miscellaneous . | . . Route ------- -11/Scrapyard -10/Materials (discovered 3 exits: *Mat x2 / [*Min]) History --------- Turn | Location | Event 48 | -11/Scrapyard | Discovered new exit (range 16) 218 | -11/Scrapyard | Entered Materials 333 | -10/Materials | Build established: Mutant 343 | -10/Materials | Discovered new exit (range 14) 535 | -10/Materials | Identified exit to Materials 589 | -10/Materials | Discovered exit to Materials (range 15) 708 | -10/Materials | Discovered new exit (range 9) 1012 | -10/Materials | Core integrity fell below 50% 1029 | -10/Materials | Core integrity fell below 20% 1043 | -10/Materials | Destroyed by G-47 Trooper with Particle Gun Last Messages --------------- 01023_ S-10 Pest destroyed. 01023_ Seismic Detector destroyed. 01024_ K-01 Serf collects debris. 01026_ S-10 Pest destroyed. 01026_ Switching to secondary target: G-47 Trooper. 01027_ K-01 Serf collects debris. 01028_ R-06 Scavenger collects Flight Unit. 01029_ K-01 Serf collects debris. 01031_ G-34 Mercenary suffers critical hit (Burn). 01032_ R-06 Scavenger collects Lgt. Ion Engine. 01033_ Lgt. Ion Engine destroyed. 01034_ Med. Laser destroyed. 01034_ K-01 Serf collects debris. 01036_ K-01 Serf destroyed. 01036_ R-06 Scavenger collects Flight Unit. 01036_ K-01 Serf collects debris. 01039_ G-47 Trooper knocked back. 01039_ R-06 Scavenger collects Lgt. Ion Engine. 01041_ K-01 Serf collects debris. 01042_ G-34 Mercenary destroyed. Map ----- +----------------------------------------------------+ | ??????????????????????????????? ???????????????? | | ??????????????? ??????????????? ????????? ???#?? | | ?#???????#??????????? ??????? ? ???????? ??#???? | | ???????????????????????????#???# ##??????????????? | | ????????????????????#???????#?## #???? ??????????? | | ???????????????????????????##??# #??#???#????????# | | ?????????????????#????????#??#?# #??########???#?? | | ##########?????#?#?##########??# ##?# #?????? | | #?##?????? #???# #??# !!! #?????? | | [[! #????????? #???# ##?#==!!! #?##??? | | [[ #?#?????? """ #####/#### = ! ##????? | | [[ #?#?????#""""" ! # #=! ###???? | | #???????#"""""=%! # #* #?#???? | | #??????##""""" # #+##+######### | | #???????# """ * = # # % | | #???????# %%%!# + < | | ####+###################+### # % % | | # %% # ####+######+## | | # # #? |?# | | # + ## "" # "" | | ###########+#####"T"## * ########### "T # "" | | ????????? ??######==!r #??#??###?# "" # "" | | ??????? ?????##%%%##??#??##??# # | | ????? #????##%%g#????????#?# # | | ????# #??#??#=k!#?????????######### "Y" | | ????# #?#??##[*@#???#??##?#???????# """ | | ????# ####### #??#??????#????#??# | | ????# # # ########??????????###### | | ################# """ # # #???????#???????# | | # ##### # """ # #""" #???#????#????#?? | | # # """ # %#""" #???????#?#?????? | | # % + # #""" ##????????????#?? | | # # + + #???????????????# | | # ##### # # # #??????????###### | | ## ################## ########??????????# | | ?# #?# ????# #?????????????????# | | ?# #?# ????# #?????????????????# | | ?# #?# " """"" ????# #?????????????????# | | ## ### """"""""" #??# #?????????????????# | | # ## """ """ #??# #?###?????????##### | | # #??# #?# #####??## ## | | # #??# < #?? #?## #? | | < ###+##########?# #???? #?# ????? | | / # #?#####????## ##### #########+ | | "" ""# # "T" ############ | | #"|||"## # ## + | | ##"""### # ## ####+#######+######+ | | ######## ##+######## " #?? ?# ! | | # "" #?? ?# | | + "" #? """# """ """ """ | +----------------------------------------------------+ Best States ------------- Heat Dissipation 25 Energy Generation 10 Energy Capacity 250 Matter Stores 300 Matter Capacity 300 Sight Range 16 Terrain Scan Range 16 Terrain Scan Density 10 Evasion (%) 42 Recoil Reduction 2 Item Schematics ----------------- None Robot Schematics ------------------ None Fabricated ------------ Nothing Alien Tech Used ----------------- None Achievements -------------- None Challenges ------------ None Game ------ Seed SupercompositeCommFragment Manual? 0 Play Time 00:11:01 Cumulative 63.8 hours Start 2024.08.07 @ 19:55:02 End 2024.08.07 @ 20:05:01 Sessions 1 Manual Loads 0 Difficulty Rogue Special Mode None Game No. 55 Rogue 34 Adventurer 21 Explorer 0 Win Type - Total 1 Types 1/0/0/0/0/0/0/0/0 Lore% 15 Gallery% 44 Achievement% 39 Wizard Run 0 Options --------- Layout 1 ASCII 0 Keyboard 0 Movement Mouse Keybinds 0 Fullscreen 2 Font 32/SmallcapsGlow Map View 77x35 Zoom Use 0% Tactical HUD 1 Map Filters NONE Filters NONE Steam 1 RUN: 1234a71b-af9a-4837-9c3e-2723cad2f525